lending/lending_fUSD_20241120
["ID","MTS","AMOUNT","RATE_DAILY","PERIOD"]
[342781916,1732140712363,-500.0,0.0005589,120]
[342781917,1732140712375,-500.0,0.0005589,120]
[342781918,1732140712384,-883.47,0.0005589,120]
[342781919,1732140712395,-1125.72,0.0005589,120]
[342781920,1732140712404,-500.0,0.0005589,120]
[342781921,1732140712415,-500.0,0.0005589,120]
[342781922,1732140712424,-500.0,0.0005589,120]
[342781923,1732140712433,-500.0,0.0005589,120]
[342781924,1732140712442,-500.0,0.0005589,120]
[342781925,1732140712451,-1198.91,0.0005589,120]
[342781926,1732140712462,-1116.01,0.0005589,120]
[342781927,1732140712471,-500.0,0.0005589,120]
[342781928,1732140712481,-500.0,0.0005589,120]
[342781929,1732140712491,-172.8058878,0.0005589,120]
[342781930,1732140712501,-500.0,0.0005589,120]
[342781931,1732140712511,-500.0,0.0005589,120]
[342781932,1732140712521,-500.69375862,0.0005589,120]
[342781933,1732140712530,-500.0,0.0005589,120]
[342781934,1732140712539,-1410.51,0.0005589,120]
[342781935,1732140712550,-500.0,0.0005589,120]
[342781936,1732140712560,-500.0,0.0005589,120]
[342781937,1732140712570,-451.80065011,0.0005589,120]
[342781938,1732140712580,-508.72,0.0005589,120]
[342781939,1732140712589,-500.0,0.0005589,120]
[342781940,1732140712600,-500.0,0.0005589,120]
[342781941,1732140712609,-501.02,0.0005589,120]
[342781942,1732140712619,-500.0,0.0005589,120]
[342781943,1732140712629,-854.5,0.0005589,120]
[342781944,1732140712638,-500.0,0.0005589,120]
[342781945,1732140712647,-500.0,0.0005589,120]
[342781946,1732140712656,-415.6106734,0.0005589,120]
[342781947,1732140712669,-500.0,0.0005589,120]
[342781948,1732140712678,-923.86,0.0005589,120]
[342781949,1732140712687,-500.0,0.0005589,60]
[342781950,1732140712697,-1843.46,0.0005589,120]
[342781951,1732140712706,-810.6,0.0005589,120]
[342781952,1732140712716,-246.29490793,0.0005589,120]
[342781953,1732140712726,-500.0,0.0005589,120]
[342781954,1732140712735,-500.0,0.0005589,120]
[342781955,1732140712744,-500.0,0.0005589,120]
[342781956,1732140712753,-909.22,0.0005589,120]
[342781957,1732140712763,-335.63144645,0.0005589,120]
[342781958,1732140712772,-500.0,0.0005589,120]
[342781959,1732140712781,-500.0,0.0005589,120]
[342781960,1732140712790,-533.52,0.0005589,120]
[342781961,1732140712799,-543.91563363,0.0005589,120]
[342781962,1732140712808,-500.0,0.0005589,120]
[342781963,1732140712818,-500.0,0.0005589,120]
[342781964,1732140712827,-2415.23,0.0005589,120]
[342781965,1732140712837,-500.0,0.0005589,120]
[342781966,1732140712847,-972.8,0.0005589,120]
[342781967,1732140712855,-500.0,0.0005589,120]
[342781968,1732140712864,-1624.46,0.0005589,120]
[342781969,1732140712873,-500.0,0.0005589,120]
[342781970,1732140712882,-500.0,0.0005589,120]
[342781971,1732140712892,-500.0,0.0005589,120]
[342781972,1732140712901,-530.46,0.0005589,120]
[342781973,1732140712912,-150.0,0.0005589,120]
[342781974,1732140712922,-500.0,0.0005589,120]
[342781975,1732140712931,-730.89,0.0005589,120]
[342781976,1732140712941,-500.0,0.0005589,60]
[342781977,1732140712951,-500.0,0.0005589,120]
[342781978,1732140712960,-537.75928989,0.0005589,120]
[342781979,1732140712969,-500.0,0.0005589,120]
[342781980,1732140712978,-500.0,0.0005589,120]
[342781981,1732140712987,-615.39,0.0005589,120]
[342781982,1732140712996,-503.87863235,0.0005589,2]
[342781983,1732140713006,-500.0,0.0005589,120]
[342781984,1732140713015,-500.0,0.0005589,120]
[342781985,1732140713025,-500.0,0.0005589,120]
[342781986,1732140713034,-500.0,0.0005589,120]
[342781987,1732140713043,-515.66,0.0005589,120]
[342781988,1732140713052,-500.0,0.0005589,120]
[342781989,1732140713062,-500.0,0.0005589,120]
[342781990,1732140713072,-783.6,0.0005589,120]
[342781991,1732140713081,-1852.69,0.0005589,120]
[342781992,1732140713091,-713.08,0.0005589,120]
[342781993,1732140713100,-524.36,0.0005589,120]
[342781994,1732140713110,-500.91442234,0.0005589,120]
[342781995,1732140713119,-500.0,0.0005589,120]
[342781996,1732140713129,-500.0,0.0005589,120]
[342781997,1732140713143,-500.0,0.0005589,120]
[342781998,1732140713153,-500.0,0.0005589,120]
[342781999,1732140713164,-500.0,0.0005589,120]
[342782000,1732140713175,-500.0,0.0005589,120]
[342782001,1732140713184,-729.05,0.0005589,120]
[342782002,1732140713195,-500.0,0.0005589,120]
[342782003,1732140713204,-500.0,0.0005589,120]
[342782004,1732140713216,-2435.5,0.0005589,120]
[342782005,1732140713227,-500.0,0.0005589,120]
[342782006,1732140713237,-521.8,0.0005589,120]
[342782007,1732140713247,-642.48,0.0005589,120]
[342782008,1732140713256,-849.85,0.0005589,120]
[342782009,1732140713266,-627.45,0.0005589,120]
[342782010,1732140713276,-500.0,0.0005589,120]
[342782011,1732140713287,-742.62,0.0005589,120]
[342782012,1732140713297,-500.0,0.0005589,120]
[342782013,1732140713308,-500.0,0.0005589,120]
[342782014,1732140713317,-858.26,0.0005589,120]
[342782015,1732140713326,-500.0,0.0005589,120]
[342782016,1732140713335,-503.51,0.0005589,120]
[342782017,1732140713345,-500.0,0.0005589,120]
[342782018,1732140713355,-2800.08,0.0005589,120]
[342782019,1732140713364,-500.0,0.0005589,120]
[342782020,1732140713374,-500.0,0.0005589,120]
[342782021,1732140713383,-500.0,0.0005589,120]
[342782022,1732140713393,-563.45,0.0005589,120]
[342782023,1732140713402,-500.0,0.0005589,120]
[342782024,1732140713413,-500.0,0.0005589,120]
[342782025,1732140713423,-500.0,0.0005589,120]
[342782026,1732140713432,-1104.08,0.0005589,120]
[342782027,1732140713441,-500.0,0.0005589,120]
[342782028,1732140713450,-500.0,0.0005589,120]
[342782029,1732140713460,-1222.85,0.0005589,120]
[342782030,1732140713469,-500.0,0.0005589,120]
[342782031,1732140713478,-500.0,0.0005589,120]
[342782032,1732140713487,-500.0,0.0005589,120]
[342782033,1732140713497,-1021.61,0.0005589,120]
[342782034,1732140713507,-578.33,0.0005589,120]
[342782035,1732140713516,-500.0,0.0005589,120]
[342782036,1732140713527,-500.0,0.0005589,120]
[342782037,1732140713537,-1661.17,0.0005589,120]
[342782038,1732140713547,-501.36500545,0.0005589,120]
[342782039,1732140713556,-500.0,0.0005589,120]
[342782040,1732140713566,-500.0,0.0005589,120]
[342782041,1732140713576,-800.14,0.0005589,120]
[342782042,1732140713586,-500.0,0.0005589,120]
[342782043,1732140713596,-500.0,0.0005589,120]
[342782044,1732140713605,-1090.19,0.0005589,120]
[342782045,1732140713615,-1054.3,0.0005589,120]
[342782046,1732140713625,-500.0,0.0005589,120]
[342782047,1732140713638,-1209.25,0.0005589,120]
[342782048,1732140713647,-526.90833577,0.0005589,120]
[342782049,1732140713657,-1127.18,0.0005589,120]
[342782050,1732140713668,-500.0,0.0005589,120]
[342782051,1732140713679,-500.0,0.0005589,120]
[342782052,1732140713690,-500.0,0.0005589,120]
[342782053,1732140713700,-503.44751686,0.0005589,120]
[342782054,1732140713712,-500.0,0.0005589,120]
[342782055,1732140713722,-500.0,0.0005589,120]
[342782056,1732140713731,-1267.34,0.0005589,120]
[342782057,1732140713741,-500.0,0.0005589,120]
[342782058,1732140713751,-2432.38,0.0005589,7]
[342782059,1732140713761,-500.0,0.0005589,120]
[342782060,1732140713770,-500.0,0.0005589,120]
[342782061,1732140713780,-500.0,0.0005589,120]
[342782062,1732140713790,-1560.72,0.0005589,120]
[342782063,1732140713800,-500.0,0.0005589,120]
[342782064,1732140713809,-655.09,0.0005589,120]
[342782065,1732140713819,-500.0,0.0005589,120]
[342782066,1732140713829,-1047.78,0.0005589,120]
[342782067,1732140713838,-500.0,0.0005589,120]
[342782068,1732140713848,-500.0,0.0005589,120]
[342782069,1732140713857,-1376.36,0.0005589,120]
[342782070,1732140713867,-758.47,0.0005589,120]
[342782071,1732140713876,-503.52787964,0.0005589,120]
[342782072,1732140713885,-1218.68,0.0005589,120]
[342782073,1732140713895,-1031.21,0.0005589,120]
[342782074,1732140713904,-500.0,0.0005589,120]
[342782075,1732140713913,-746.97,0.0005589,120]
[342782076,1732140713923,-504.19378427,0.0005589,120]
[342782077,1732140713932,-500.0,0.0005589,120]
[342782078,1732140713942,-500.0,0.0005589,120]
[342782079,1732140713951,-1956.13,0.0005589,120]
[342782080,1732140713961,-859.85,0.0005589,120]
[342782081,1732140713970,-1530.02,0.0005589,120]
[342782082,1732140713980,-626.84,0.0005589,120]
[342782083,1732140713989,-925.63,0.0005589,120]
[342782084,1732140713998,-567.33359813,0.0005589,120]
[342782085,1732140714008,-1089.2,0.0005589,120]
[342782086,1732140714017,-500.0,0.0005589,120]
[342782087,1732140714026,-746.22,0.0005589,120]
[342782088,1732140714035,-500.0,0.0005589,120]
[342782089,1732140714045,-500.0,0.0005589,120]
[342782090,1732140714055,-1753.04,0.0005589,120]
[342782091,1732140714065,-1615.28,0.0005589,120]
[342782092,1732140714074,-500.0,0.0005589,120]
[342782093,1732140714083,-750.0,0.0005589,120]
[342782094,1732140714092,-500.0,0.0005589,120]
[342782095,1732140714101,-2808.16,0.0005589,120]
[342782096,1732140714111,-500.0,0.0005589,120]
[342782097,1732140714120,-628.55,0.0005589,120]
[342782098,1732140714130,-500.0,0.0005589,120]
[342782099,1732140714142,-2720.22,0.0005589,120]
[342782100,1732140714151,-500.0,0.0005589,2]
[342782101,1732140714160,-1040.43,0.0005589,120]
[342782102,1732140714170,-679.38,0.0005589,120]
[342782103,1732140714181,-500.0,0.0005589,120]
[342782104,1732140714190,-503.5797516,0.0005589,120]
[342782105,1732140714199,-1140.69,0.0005589,120]
[342782106,1732140714210,-500.0,0.0005589,120]
[342782107,1732140714220,-579.85,0.0005589,120]
[342782108,1732140714230,-1233.54,0.0005589,120]
[342782109,1732140714239,-560.33,0.0005589,120]
[342782110,1732140714248,-1241.7,0.0005589,120]
[342782111,1732140714258,-500.0,0.0005589,120]
[342782112,1732140714267,-673.6,0.0005589,120]
[342782113,1732140714276,-1595.79,0.0005589,120]
[342782114,1732140714285,-500.0,0.0005589,120]
[342782115,1732140714294,-500.0,0.0005589,120]
[342782116,1732140714303,-690.2,0.0005589,120]
[342782117,1732140714313,-500.0,0.0005589,120]
[342782118,1732140714322,-614.35,0.0005589,120]
[342782119,1732140714332,-500.0,0.0005589,120]
[342782120,1732140714341,-186.9109494,0.0005589,120]
[342782121,1732140714351,-500.0,0.0005589,120]
[342782122,1732140714360,-1420.27,0.0005589,120]
[342782123,1732140714370,-500.0,0.0005589,120]
[342782124,1732140714380,-500.0,0.0005589,120]
[342782125,1732140714389,-500.0,0.0005589,120]
[342782126,1732140714399,-500.0,0.0005589,120]
[342782127,1732140714409,-500.0,0.0005589,120]
[342782128,1732140714420,-500.0,0.0005589,120]
[342782129,1732140714429,-500.0,0.0005589,120]
[342782130,1732140714439,-500.0,0.0005589,120]
[342782131,1732140714449,-1747.91,0.0005589,120]
[342782132,1732140714458,-500.0,0.0005589,120]
[342782133,1732140714467,-500.0,0.0005589,120]
[342782134,1732140714477,-500.0,0.0005589,120]
[342782135,1732140714486,-1026.85,0.0005589,120]
[342782136,1732140714496,-500.0,0.0005589,120]
[342782137,1732140714505,-500.0,0.0005589,120]
[342782138,1732140714515,-500.0,0.0005589,120]
[342782139,1732140714524,-500.0,0.0005589,120]
[342782140,1732140714534,-500.0,0.0005589,120]
[342782141,1732140714544,-1929.2,0.0005589,120]
[342782142,1732140714553,-813.38,0.0005589,120]
[342782143,1732140714562,-1208.59,0.0005589,120]
[342782144,1732140714572,-509.94,0.0005589,120]
[342782145,1732140714581,-500.0,0.0005589,120]
[342782146,1732140714591,-547.23,0.0005589,120]
[342782147,1732140714600,-352.57219799,0.0005589,120]
[342782148,1732140714610,-2243.95,0.0005589,120]
[342782149,1732140714619,-1133.87,0.0005589,120]
[342782150,1732140714629,-983.72,0.0005589,120]
[342782151,1732140714639,-500.0,0.0005589,120]
[342782152,1732140714649,-500.0,0.0005589,120]
[342782153,1732140714659,-500.0,0.0005589,120]
[342782154,1732140714669,-500.0,0.0005589,120]
[342782155,1732140714679,-500.0,0.0005589,120]
[342782156,1732140714688,-500.0,0.0005589,120]
[342782157,1732140714698,-500.0,0.0005589,120]
[342782158,1732140714708,-227.84884771,0.0005589,120]
[342782159,1732140714718,-500.0,0.0005589,120]
[342782160,1732140714728,-500.0,0.0005589,120]
[342782161,1732140714737,-507.85203463,0.0005589,120]
[342782162,1732140714747,-500.0,0.0005589,120]
[342782163,1732140714756,-500.0,0.0005589,120]
[342782164,1732140714766,-500.0,0.0005589,120]
[342782165,1732140714776,-837.29,0.0005589,120]
[342782166,1732140714785,-601.65,0.0005589,120]
[342782167,1732140714795,-500.0,0.0005589,120]
[342782168,1732140714804,-500.0,0.0005589,120]
[342782169,1732140714814,-500.0,0.0005589,120]
[342782170,1732140714824,-500.0,0.0005589,120]
[342782171,1732140714834,-500.0,0.0005589,120]
[342782172,1732140714843,-201.51576997,0.0005589,120]
[342782173,1732140714853,-500.0,0.0005589,120]
[342782174,1732140714863,-1244.02,0.0005589,120]
[342782175,1732140714872,-500.0,0.0005589,120]
[342782176,1732140714882,-500.0,0.0005589,120]
[342782177,1732140714891,-581.48,0.0005589,120]
[342782178,1732140714900,-500.0,0.0005589,120]
[342782179,1732140714910,-500.0,0.0005589,120]
[342782180,1732140714920,-912.77,0.0005589,120]
[342782181,1732140714930,-1640.54,0.0005589,120]
[342782182,1732140714939,-822.59,0.0005589,120]
[342782183,1732140714949,-500.0,0.0005589,120]
[342782184,1732140714958,-500.0,0.0005589,120]
[342782185,1732140714968,-957.41,0.0005589,120]
[342782186,1732140714977,-3305.34,0.0005589,120]
[342782187,1732140714987,-500.0,0.0005589,120]
[342782188,1732140714996,-546.92,0.0005589,120]
[342782189,1732140715006,-500.0,0.0005589,120]
[342782190,1732140715015,-500.0,0.0005589,120]
[342782191,1732140715025,-500.0,0.0005589,120]
[342782192,1732140715034,-1590.28,0.0005589,120]
[342782193,1732140715043,-500.0,0.0005589,120]
[342782194,1732140715053,-500.0,0.0005589,120]
[342782195,1732140715062,-4503.54,0.0005589,120]
[342782196,1732140715071,-2459.56,0.0005589,120]
[342782197,1732140715081,-500.0,0.0005589,120]
[342782198,1732140715090,-5054.97,0.0005589,120]
[342782199,1732140715099,-500.0,0.0005589,120]
[342782200,1732140715108,-500.0,0.0005589,120]
[342782201,1732140715118,-500.0,0.0005589,120]
[342782202,1732140715127,-491.26433407,0.0005589,120]
[342782203,1732140715141,-500.0,0.0005589,120]
[342782204,1732140715151,-500.0,0.0005589,120]
[342782205,1732140715161,-1237.62,0.0005589,120]
[342782206,1732140715171,-1805.81,0.0005589,120]
[342782207,1732140715181,-1705.69,0.0005589,120]
[342782208,1732140715190,-730.02,0.0005589,120]
[342782209,1732140715200,-500.0,0.0005589,120]
[342782210,1732140715212,-500.0,0.0005589,120]
[342782211,1732140715222,-556.28,0.0005589,120]
[342782212,1732140715232,-1293.03,0.0005589,120]
[342782213,1732140715242,-735.83,0.0005589,120]
[342782214,1732140715252,-500.0,0.0005589,120]
[342782215,1732140715262,-875.45,0.0005589,120]
[342782216,1732140715272,-500.0,0.0005589,120]
[342782217,1732140715282,-505.44974422,0.0005589,120]
[342782218,1732140715292,-500.0,0.0005589,120]
[342782219,1732140715302,-500.0,0.0005589,120]
[342782220,1732140715314,-2355.16,0.0005589,120]
[342782221,1732140715324,-529.9,0.0005589,120]
[342782222,1732140715336,-1065.14,0.0005589,120]
[342782223,1732140715346,-1626.59,0.0005589,120]
[342782224,1732140715355,-500.0,0.0005589,120]
[342782225,1732140715365,-500.0,0.0005589,120]
[342782226,1732140715375,-500.0,0.0005589,120]
[342782227,1732140715385,-1000.0,0.0005589,30]
[342782228,1732140715395,-899.71,0.0005589,120]
[342782229,1732140715405,-1031.07,0.0005589,120]
[342782230,1732140715417,-500.0,0.0005589,120]
[342782231,1732140715427,-2139.66,0.0005589,120]
[342782232,1732140715439,-500.0,0.0005589,120]
[342782233,1732140715448,-500.0,0.0005589,120]
[342782234,1732140715458,-500.0,0.0005589,120]
[342782235,1732140715468,-1746.7,0.0005589,120]
[342782236,1732140715478,-2450.69,0.0005589,120]
[342782237,1732140715488,-525.57,0.0005589,120]
[342782238,1732140715498,-500.0,0.0005589,120]
[342782239,1732140715508,-500.0,0.0005589,120]
[342782240,1732140715518,-1007.82,0.0005589,120]
[342782241,1732140715528,-525.94,0.0005589,120]
[342782242,1732140715538,-500.0,0.0005589,120]
[342782243,1732140715548,-1123.27,0.0005589,120]
[342782244,1732140715559,-500.0,0.0005589,120]
[342782245,1732140715569,-500.0,0.0005589,120]
[342782246,1732140715579,-800.11,0.0005589,120]
[342782247,1732140715590,-504.02620259,0.0005589,120]
[342782248,1732140715600,-3332.16,0.0005589,120]
[342782249,1732140715610,-636.82898007,0.0005589,120]
[342782250,1732140715621,-500.0,0.0005589,120]
[342782251,1732140715631,-500.0,0.0005589,120]
[342782252,1732140715640,-500.0,0.0005589,120]
[342782253,1732140715652,-1393.96,0.0005589,120]
[342782254,1732140715661,-523.38528309,0.0005589,120]
[342782255,1732140715670,-967.57,0.0005589,120]
[342782256,1732140715680,-500.0,0.0005589,120]
[342782257,1732140715690,-500.0,0.0005589,120]
[342782258,1732140715700,-500.0,0.0005589,120]
[342782259,1732140715710,-1357.65,0.0005589,120]
[342782260,1732140715721,-500.0,0.0005589,120]
[342782261,1732140715731,-500.0,0.0005589,120]
[342782262,1732140715741,-1642.87,0.0005589,120]
[342782263,1732140715751,-500.0,0.0005589,120]
[342782264,1732140715762,-1717.17,0.0005589,120]
[342782265,1732140715772,-1588.79,0.0005589,90]
[342782266,1732140715782,-1853.26,0.0005589,120]
[342782267,1732140715792,-500.0,0.0005589,120]
[342782268,1732140715802,-500.0,0.0005589,120]
[342782269,1732140715813,-500.0,0.0005589,120]
[342782270,1732140715824,-500.0,0.0005589,120]
[342782271,1732140715833,-500.0,0.0005589,120]
[342782272,1732140715844,-500.0,0.0005589,120]
[342782273,1732140715855,-500.0,0.0005589,120]
[342782274,1732140715866,-500.0,0.0005589,120]
[342782275,1732140715877,-500.0,0.0005589,120]
[342782276,1732140715888,-700.0,0.0005589,120]
[342782277,1732140715898,-500.0,0.0005589,120]
[342782278,1732140715910,-2546.22,0.0005589,120]
[342782279,1732140715924,-500.0,0.0005589,120]
[342782280,1732140715934,-500.0,0.0005589,120]
[342782281,1732140715943,-2834.37,0.0005589,120]
[342782282,1732140715953,-250.0,0.0005589,120]
[342782283,1732140715962,-500.0,0.0005589,120]
[342782284,1732140715972,-1334.03,0.0005589,120]
[342782285,1732140715982,-500.0,0.0005589,120]
[342782286,1732140715991,-500.0,0.0005589,120]
[342782287,1732140716001,-500.0,0.0005589,120]
[342782288,1732140716011,-500.0,0.0005589,120]
[342782289,1732140716021,-500.0,0.0005589,120]
[342782290,1732140716031,-500.0,0.0005589,120]
[342782291,1732140716040,-2885.23,0.0005589,120]
[342782292,1732140716050,-4453.81,0.0005589,120]
[342782293,1732140716060,-500.0,0.0005589,120]
[342782294,1732140716070,-500.0,0.0005589,120]
[342782295,1732140716079,-512.03613123,0.0005589,120]
[342782296,1732140716089,-2241.05,0.0005589,120]
[342782297,1732140716098,-500.0,0.0005589,120]
[342782298,1732140716108,-2217.98,0.0005589,120]
[342782299,1732140716118,-500.0,0.0005589,120]
[342782300,1732140716127,-500.0,0.0005589,120]
[342782301,1732140716141,-500.0,0.0005589,120]
[342782302,1732140716152,-500.0,0.0005589,120]
[342782303,1732140716164,-1402.45,0.0005589,60]
[342782304,1732140716175,-500.0,0.0005589,120]
[342782305,1732140716185,-500.0,0.0005589,120]
[342782306,1732140716195,-800.61,0.0005589,120]
[342782307,1732140716207,-500.0,0.0005589,120]
[342782308,1732140716218,-500.0,0.0005589,120]
[342782309,1732140716230,-500.0,0.0005589,120]
[342782310,1732140716240,-932.27,0.0005589,120]
[342782311,1732140716250,-1004.07,0.0005589,120]
[342782312,1732140716260,-518.28242863,0.0005589,120]
[342782313,1732140716270,-500.0,0.0005589,120]
[342782314,1732140716279,-2000.63,0.0005589,120]
[342782315,1732140716290,-1132.68,0.0005589,120]
[342782316,1732140716300,-500.0,0.0005589,120]
[342782317,1732140716310,-703.55,0.0005589,120]
[342782318,1732140716320,-2241.76,0.0005589,120]
[342782319,1732140716330,-596.11,0.0005589,120]
[342782320,1732140716339,-794.52,0.0005589,120]
[342782321,1732140716349,-833.99,0.0005589,120]
[342782322,1732140716359,-2777.12,0.0005589,120]
[342782323,1732140716369,-1309.21,0.0005589,120]
[342782324,1732140716378,-1558.24,0.0005589,120]
[342782325,1732140716388,-500.0,0.0005589,120]
[342782326,1732140716398,-500.0,0.0005589,120]
[342782327,1732140716408,-500.0,0.0005589,120]
[342782328,1732140716418,-500.0,0.0005589,120]
[342782329,1732140716428,-500.0,0.0005589,120]
[342782330,1732140716438,-500.0,0.0005589,120]
[342782331,1732140716448,-500.0,0.0005589,120]
[342782332,1732140716458,-500.08,0.0005589,120]
[342782333,1732140716467,-500.0,0.0005589,120]
[342782334,1732140716478,-500.0,0.0005589,60]
[342782335,1732140716487,-500.0,0.0005589,120]
[342782336,1732140716497,-2539.87,0.0005589,120]
[342782337,1732140716774,-500.0,0.0005589,120]
[342782338,1732140716786,-500.0,0.0005589,120]
[342782339,1732140716796,-831.36,0.0005589,120]
[342782340,1732140716806,-500.0,0.0005589,120]
[342782341,1732140716815,-1229.75,0.0005589,120]
[342782342,1732140716825,-500.0,0.0005589,120]
[342782343,1732140716835,-500.0,0.0005589,120]
[342782344,1732140716845,-500.0,0.0005589,120]
[342782345,1732140716855,-1365.28,0.0005589,120]
[342782346,1732140716864,-1743.89,0.0005589,120]
[342782347,1732140716873,-500.0,0.0005589,120]
[342782348,1732140716883,-500.0,0.0005589,120]
[342782349,1732140716892,-500.0,0.0005589,120]
[342782350,1732140716902,-500.0,0.0005589,120]
[342782351,1732140716911,-1290.22,0.0005589,120]
[342782352,1732140716922,-507.82,0.0005589,120]
[342782353,1732140716932,-500.0,0.0005589,120]
[342782354,1732140716941,-500.0,0.0005589,120]
[342782355,1732140716951,-3045.72,0.0005589,120]
[342782356,1732140716960,-405.52783233,0.0005589,120]
[342782357,1732140716969,-500.0,0.0005589,120]
[342782358,1732140716978,-500.0,0.0005589,120]
[342782359,1732140716987,-916.6,0.0005589,120]
[342782360,1732140716997,-500.0,0.0005589,120]
[342782361,1732140717006,-500.0,0.0005589,120]
[342782362,1732140717015,-610.75,0.0005589,120]
[342782363,1732140717024,-500.0,0.0005589,120]
[342782364,1732140717034,-500.0,0.0005589,120]
[342782365,1732140717043,-1278.95,0.0005589,120]
[342782366,1732140717052,-502.86,0.0005589,120]
[342782367,1732140717062,-504.52,0.0005589,120]
[342782368,1732140717071,-500.0,0.0005589,120]
[342782369,1732140717080,-500.0,0.0005589,120]
[342782370,1732140717089,-500.0,0.0005589,120]
[342782371,1732140717099,-702.18,0.0005589,120]
[342782372,1732140717108,-500.0,0.0005589,120]
[342782373,1732140717117,-3583.6,0.0005589,120]
[342782374,1732140717127,-1685.95,0.0005589,120]
[342782375,1732140717139,-500.0,0.0005589,120]
[342782376,1732140717149,-500.0,0.0005589,120]
[342782377,1732140717158,-500.0,0.0005589,120]
[342782378,1732140717169,-5689.68,0.0005589,120]
[342782379,1732140717180,-1343.23,0.0005589,120]
[342782380,1732140717189,-500.0,0.0005589,120]
[342782381,1732140717198,-500.0,0.0005589,120]
[342782382,1732140717208,-500.0,0.0005589,120]
[342782383,1732140717219,-553.27,0.0005589,120]
[342782384,1732140717228,-500.0,0.0005589,120]
[342782385,1732140717238,-500.0,0.0005589,120]
[342782386,1732140717248,-500.0,0.0005589,120]
[342782387,1732140717257,-508.22732277,0.0005589,120]
[342782388,1732140717266,-500.0,0.0005589,120]
[342782389,1732140717275,-500.0,0.0005589,120]
[342782390,1732140717284,-500.0,0.0005589,120]
[342782391,1732140717293,-1250.26,0.0005589,120]
[342782392,1732140717303,-982.33,0.0005589,120]
[342782393,1732140717313,-667.62,0.0005589,120]
[342782394,1732140717322,-500.0,0.0005589,120]
[342782395,1732140717331,-500.0,0.0005589,120]
[342782396,1732140717341,-500.0,0.0005589,120]
[342782397,1732140717350,-609.95,0.0005589,120]
[342782398,1732140717360,-603.26637524,0.0005589,120]
[342782399,1732140717369,-500.0,0.0005589,120]
[342782400,1732140717378,-500.0,0.0005589,120]
[342782401,1732140717388,-500.0,0.0005589,120]
[342782402,1732140717398,-500.0,0.0005589,120]
[342782403,1732140717408,-808.05,0.0005589,120]
[342782404,1732140717419,-500.0,0.0005589,120]
[342782405,1732140717429,-522.08,0.0005589,120]
[342782406,1732140717439,-1111.01,0.0005589,120]
[342782407,1732140717448,-671.78,0.0005589,120]
[342782408,1732140717458,-500.0,0.0005589,120]
[342782409,1732140717468,-1704.12,0.0005589,120]
[342782410,1732140717477,-2102.13,0.0005589,120]
[342782411,1732140717488,-500.0,0.0005589,120]
[342782412,1732140717497,-500.0,0.0005589,120]
[342782413,1732140717509,-500.0,0.0005589,120]
[342782414,1732140717518,-675.74,0.0005589,120]
[342782415,1732140717529,-500.0,0.0005589,120]